bitfinex/quotes_ETHUSD_20241217
["timestamp","ask_amount","ask_price","bid_price","bid_amount"]
[1734467823402,2.53498,3944.8,3944.7,0.25]
[1734467824731,2.53511,3944.6,3944.5,0.25]
[1734467824905,0.55046863,3944.8,3944.7,0.25]
[1734467824906,3.08550863,3944.8,3944.7,0.25]
[1734467825095,2.53504,3944.8,3944.7,0.25]
[1734467827998,1.92205696,3945.0,3944.9,0.25]
[1734467828400,7.45690696,3945.0,3944.9,0.25]
[1734467830338,7.58472069,3945.0,3944.9,0.25]
[1734467833525,7.58472069,3945.0,3944.6,0.25]
[1734467833726,2.53504,3944.7,3944.6,0.25]
[1734467833947,3.12781373,3945.0,3944.6,0.25]
[1734467834149,0.8329,3945.8,3945.5,0.25]
[1734467834324,2.53446,3945.6,3945.5,0.25]
[1734467835782,0.8329,3946.2,3945.8,0.25]
[1734467836081,1.92205696,3946.3,3946.2,0.25]
[1734467836082,2.53401,3946.3,3946.2,0.25]
[1734467836233,2.7262157,3946.3,3946.2,0.25]
[1734467844963,2.53427,3945.9,3945.8,0.25]
[1734467845113,3.0,3946.6,3946.2,0.25]
[1734467845321,2.53401,3946.3,3946.2,0.25]
[1734467850876,6.34635521,3946.6,3946.5,0.25]
[1734467851043,2.53367,3946.9,3946.5,0.25]
[1734467851245,2.53367,3946.9,3946.8,0.25]
[1734467851976,2.53334,3947.4,3947.1,0.25]
[1734467852174,2.53334,3947.4,3947.3,0.25]
[1734467852175,0.62876762,3947.4,3947.3,0.25]
[1734467852325,3.16209762,3947.4,3947.3,0.25]
[1734467853091,2.53333,3947.4,3947.3,0.25]
[1734467855348,2.53317,3947.7,3947.6,0.25]
[1734467855349,2.53312,3947.7,3947.6,0.25]
[1734467857545,2.53337,3947.3,3947.0,0.25]
[1734467857743,5.17539396,3947.2,3947.0,0.25]
[1734467858583,2.5335,3947.1,3947.0,0.25]
[1734467860034,2.5335,3947.1,3947.0,0.15]
[1734467862691,2.5335,3947.1,3947.0,0.05]
[1734467865291,0.1639297,3948.1,3947.0,0.7547]
[1734467865500,2.6967997,3948.1,3948.0,0.05]
[1734467865785,2.53299,3947.9,3947.0,0.7047]
[1734467865941,2.53339,3947.3,3947.0,0.7047]
[1734467866140,2.53305,3947.8,3947.0,0.7047]
[1734467866141,2.5335,3947.1,3947.0,0.7047]
[1734467866353,2.5335,3947.1,3946.0,1.31026]
[1734467866560,0.69541802,3948.1,3946.9,0.55]
[1734467866778,2.53304,3947.9,3946.9,0.55]
[1734467867087,2.53305,3947.8,3946.7,0.55]
[1734467867276,2.53305,3947.8,3946.8,0.10235459]
[1734467867456,2.53305,3947.8,3946.7,0.55]
[1734467867658,2.53305,3947.8,3946.9,0.55]
[1734467867990,0.1639297,3948.1,3946.7,0.55]
[1734467868158,2.53313,3947.7,3946.9,0.45]
[1734467868887,2.53324,3947.6,3946.8,0.8045]
[1734467869844,2.53325,3947.5,3946.8,0.8045]
[1734467870744,2.53325,3947.5,3946.9,0.55]
[1734467871054,2.53325,3947.5,3946.9,0.45]
[1734467871261,2.53325,3947.5,3946.8,0.8045]
[1734467871953,2.53331,3947.4,3946.8,0.8045]
[1734467872493,2.53339,3947.3,3946.8,0.8045]
[1734467873478,2.53326,3947.5,3946.8,0.8045]
[1734467873797,2.66284552,3947.8,3946.8,0.7045]
[1734467873947,2.53336,3947.4,3946.8,0.7045]
[1734467876186,2.66284552,3947.8,3946.8,0.7045]
[1734467876499,2.53337,3947.3,3946.8,0.7045]
[1734467876949,5.06636,3947.6,3946.8,0.6045]
[1734467877299,2.53357,3947.0,3946.8,0.6045]
[1734467878062,2.53363,3946.9,3946.8,0.6045]
[1734467879954,2.53363,3946.9,3946.8,0.5045]
[1734467880651,0.34338455,3947.7,3945.9,0.55]
[1734467880849,0.771,3947.2,3946.1,0.55]
[1734467881052,2.53375,3946.8,3946.2,0.1025159]
[1734467881267,2.53375,3946.8,3946.1,0.55]
[1734467881475,2.53375,3946.8,3946.2,0.10256544]
[1734467881699,2.53375,3946.8,3946.3,0.10256544]
[1734467881855,2.53375,3946.8,3946.1,0.55]
[1734467882056,2.53375,3946.8,3946.2,0.10257611]
[1734467882358,2.53375,3946.8,3946.3,0.10257611]
[1734467882557,2.53375,3946.8,3945.8,3.55]
[1734467882753,2.53375,3946.8,3946.0,0.55]
[1734467882986,2.53375,3946.8,3946.2,0.7975]
[1734467883210,2.53375,3946.8,3946.3,0.10256635]
[1734467883384,2.53375,3946.8,3946.2,0.7975]
[1734467883557,2.53389,3946.5,3946.3,0.1042292]
[1734467883908,2.53409,3946.2,3945.6,0.7975]
[1734467884062,2.53382,3946.6,3945.7,0.10424632]
[1734467884267,2.53382,3946.6,3945.6,0.7975]
[1734467884268,2.5343,3945.9,3945.6,0.7975]
[1734467884491,2.534,3946.4,3945.6,0.7975]
[1734467884804,2.53446,3945.6,3945.1,0.6975]
[1734467884975,2.53449,3945.6,3945.2,0.10423992]
[1734467885179,0.7688,3946.2,3945.3,0.10423992]
[1734467885372,2.53472,3945.2,3945.1,0.6975]
[1734467885682,2.53434,3945.8,3944.4,1.05583156]
[1734467885884,2.53485,3945.1,3944.5,0.10422397]
[1734467886085,2.53485,3945.1,3944.1,1.05583156]
[1734467886086,2.53453,3945.5,3944.0,1.05583156]
[1734467886272,2.53484,3945.1,3944.1,0.1042311]
[1734467886603,2.53491,3945.0,3944.2,0.1042311]
[1734467886762,2.53491,3945.0,3944.3,0.1042311]
[1734467886961,2.53466,3945.3,3943.9,1.05583156]
[1734467887162,2.53522,3944.5,3944.0,1.41393086]
[1734467887460,2.53525,3944.4,3943.5,1.05583156]
[1734467887659,2.53522,3944.5,3943.6,1.4136593]
[1734467887876,2.53522,3944.5,3943.8,0.7975]
[1734467888204,2.53504,3944.7,3943.8,0.7975]
[1734467888495,2.53545,3944.1,3943.8,0.6975]
[1734467889881,2.53553,3944.0,3943.8,0.6975]
[1734467890319,2.28593,3944.0,3943.8,0.6975]
[1734467890751,1.92205696,3944.6,3943.8,0.6975]
[1734467891024,2.53538,3944.2,3943.8,0.6975]
[1734467892435,2.53538,3944.2,3943.8,0.5975]
[1734467892584,0.7688,3944.8,3943.8,0.5975]
[1734467892784,2.5351,3944.7,3943.8,0.5975]
[1734467892984,2.17554796,3945.0,3943.5,1.01432]
[1734467892985,0.7688,3945.5,3943.9,0.02535445]
[1734467893185,2.53454,3945.5,3943.9,0.02535445]
[1734467893900,0.4456397,3945.7,3944.1,0.55]
[1734467894203,2.53452,3945.6,3944.3,1.56409]
[1734467894545,2.69085696,3945.8,3944.3,0.55]
[1734467894742,2.5346,3945.4,3944.3,0.55]
[1734467895048,2.285,3945.4,3944.3,0.55]
[1734467895254,1.92205696,3946.2,3944.9,1.01396]
[1734467895401,2.53401,3946.3,3945.1,0.7975]
[1734467895605,2.53416,3946.1,3945.1,1.033646]
[1734467896521,0.7688,3946.4,3945.1,1.033646]
[1734467896522,2.53401,3946.3,3945.1,1.033646]
[1734467896727,2.53431,3945.9,3945.1,1.033646]
[1734467897557,4.45618696,3946.2,3945.1,0.7975]
[1734467897738,0.7688,3946.4,3945.1,0.7975]
[1734467897739,1.92205696,3945.8,3945.1,0.7975]
[1734467898047,2.53475,3945.2,3944.6,0.6975]
[1734467898249,2.5346,3945.4,3944.6,0.6975]
[1734467898418,1.92205696,3945.8,3944.6,0.6975]
[1734467898419,2.53446,3945.6,3944.6,0.6975]
[1734467898616,2.53446,3945.6,3944.7,0.171158]
[1734467899746,2.53446,3945.6,3944.8,0.55]
[1734467900932,2.53446,3945.6,3944.8,0.45]
[1734467902981,3.0,3946.1,3944.9,0.7975]
[1734467903130,1.92205696,3946.2,3945.0,0.5918658]
[1734467903331,1.92205696,3946.2,3945.0,0.45]
[1734467904090,2.53438,3945.8,3945.0,0.45]
[1734467904896,2.53438,3945.8,3945.0,0.35]
[1734467905248,2.53438,3945.8,3944.9,0.7975]
[1734467905444,2.53438,3945.8,3944.9,0.978651]
[1734467905688,2.53445,3945.7,3944.9,0.978651]
[1734467905986,2.53445,3945.7,3944.9,0.7975]
[1734467906286,2.53414,3946.1,3944.9,0.7975]
[1734467906287,2.53449,3945.6,3944.9,0.7975]
[1734467906472,1.92205696,3946.2,3944.9,0.7975]
[1734467906473,2.53453,3945.5,3944.9,0.7975]
[1734467906793,2.53453,3945.5,3944.9,0.6975]
[1734467906987,2.53474,3945.2,3944.9,0.6975]
[1734467907189,2.53459,3945.4,3944.9,0.6975]
[1734467907393,2.53475,3945.2,3944.9,0.6975]
[1734467908955,2.53475,3945.2,3944.9,0.5975]
[1734467909171,2.53485,3945.0,3943.7,0.55]
[1734467909368,2.53485,3945.0,3943.9,0.55]
[1734467909687,2.53485,3945.0,3944.1,0.55]
[1734467909992,2.53485,3945.0,3944.3,0.55]
[1734467910197,2.53485,3945.0,3944.0,0.55]
[1734467910489,2.53485,3945.0,3944.2,0.55]
[1734467910789,2.53503,3944.8,3943.9,0.55]
[1734467910992,2.53503,3944.8,3944.1,0.55]
[1734467911301,2.53503,3944.8,3943.9,0.55]
[1734467911461,0.253485,3945.0,3943.8,0.6486357]
[1734467911665,0.253485,3945.0,3943.1,1.92205696]
[1734467911666,2.53512,3944.6,3943.9,0.00395334]
[1734467912002,2.53512,3944.6,3943.7,0.766]
[1734467912003,2.53516,3944.6,3943.7,0.766]
[1734467912206,2.53499,3944.8,3943.8,1.01424]
[1734467912367,2.53499,3944.8,3943.8,1.192264]
[1734467913261,2.53487,3945.0,3943.9,0.55]
[1734467913465,2.53487,3945.0,3944.0,0.766]
[1734467913869,1.92205696,3945.4,3944.0,0.766]
[1734467913870,2.53494,3944.9,3944.0,0.766]
[1734467914080,2.53509,3944.7,3944.0,0.766]
[1734467914372,0.253494,3944.9,3944.0,0.666]
[1734467914615,2.53511,3944.6,3944.0,0.666]
[1734467914998,1.92205696,3945.4,3944.0,0.666]
[1734467914999,2.53496,3944.9,3944.0,0.666]
[1734467915414,2.53483,3945.1,3944.1,0.55]
[1734467916091,1.57127893,3946.5,3943.5,2.93636696]
[1734467916093,2.5346,3945.4,3944.3,1.01412]
[1734467916273,2.53446,3945.7,3944.0,0.0253486]
[1734467916474,2.53446,3945.7,3944.3,1.01412]
[1734467916731,2.53448,3945.6,3944.2,0.55]
[1734467916889,2.53448,3945.6,3944.6,0.55]
[1734467917415,2.53448,3945.6,3944.7,0.766]
[1734467918114,2.53459,3945.5,3944.7,0.766]
[1734467918624,2.53456,3945.5,3944.7,0.766]
[1734467918805,2.53431,3945.9,3944.7,0.8976]
[1734467919007,2.53419,3946.1,3944.8,0.55]
[1734467919177,2.53419,3946.1,3944.9,0.766]
[1734467919377,2.53422,3946.0,3945.0,0.02534508]
[1734467919912,2.53422,3946.0,3944.9,0.766]
[1734467919913,2.53447,3945.6,3944.9,0.766]
[1734467920118,2.53447,3945.6,3944.9,0.91076]
[1734467920421,2.5343,3945.9,3944.9,0.91076]
[1734467920727,2.53437,3945.8,3944.9,0.91076]
[1734467921395,2.53441,3945.7,3944.9,0.91076]
[1734467921607,2.53441,3945.7,3945.0,0.247476]
[1734467921791,2.53481,3945.1,3944.2,0.766]
[1734467921994,0.827,3945.7,3944.2,0.766]
[1734467922190,2.53491,3945.0,3944.2,0.766]
[1734467922784,2.53446,3945.6,3944.2,0.766]
[1734467922988,2.53494,3944.9,3944.2,0.766]
[1734467923188,2.53501,3944.8,3944.2,0.766]
[1734467923482,2.53505,3944.7,3944.2,0.766]
[1734467923685,2.53505,3944.7,3944.3,0.10406446]
[1734467923889,2.53505,3944.7,3944.3,0.55]
[1734467924890,2.53472,3945.2,3944.3,0.55]
[1734467925121,2.87102717,3945.2,3944.3,0.55]
[1734467925322,2.53498,3944.9,3944.4,0.1040653]
[1734467925639,2.53478,3945.1,3944.3,0.55]
[1734467925937,2.87102717,3945.2,3944.3,0.55]
[1734467926333,2.53496,3944.9,3944.4,0.10406206]
[1734467926537,2.53496,3944.9,3944.3,0.55]
[1734467926725,2.53496,3944.9,3944.4,0.10405649]
[1734467926922,2.53496,3944.9,3944.3,0.55]
[1734467927323,2.53496,3944.9,3944.4,0.10406219]
[1734467927632,2.53496,3944.9,3944.3,0.55]
[1734467928238,2.53496,3944.9,3944.4,0.10405312]
[1734467928423,2.53496,3944.9,3944.3,0.55]
[1734467928624,0.33630717,3945.2,3944.3,0.55]
[1734467928800,2.53501,3944.8,3944.3,0.55]
[1734467929542,2.53472,3945.2,3944.3,0.55]
[1734467929695,2.53488,3945.0,3944.4,0.10404453]
[1734467929898,2.53492,3944.9,3944.3,0.55]
[1734467930099,2.53492,3944.9,3944.4,0.10403758]
[1734467930299,2.53492,3944.9,3944.3,0.78718316]
[1734467930630,2.53492,3944.9,3944.4,0.10403627]
[1734467930941,2.53492,3944.9,3944.3,0.55]
[1734467931136,2.53492,3944.9,3944.4,0.05552222]
[1734467931349,3.827,3945.7,3944.6,0.55]
[1734467931655,3.59379483,3945.8,3944.6,0.55]
[1734467931656,2.53454,3945.5,3944.6,0.55]
[1734467932344,2.53454,3945.5,3944.6,0.45]
[1734467932571,2.5346,3945.4,3944.6,0.45]
[1734467933249,2.53449,3945.6,3944.7,0.87296457]
[1734467933548,2.53449,3945.6,3944.7,1.30581641]
[1734467933714,2.53449,3945.6,3944.7,0.43285184]
[1734467934659,0.12402911,3945.8,3944.8,0.55]
[1734467934862,2.53453,3945.5,3944.8,0.55]
[1734467935189,0.12402911,3945.8,3944.5,1.81257]
[1734467935190,0.12402911,3945.8,3944.6,0.55]
[1734467935324,2.5344,3945.7,3944.6,0.55]
[1734467935661,2.5344,3945.7,3944.5,0.7985]
[1734467935662,2.53454,3945.5,3944.8,0.55]
[1734467936240,2.53454,3945.5,3944.6,0.55]
[1734467936421,2.53454,3945.5,3944.8,0.45]
[1734467936759,2.53454,3945.5,3944.5,1.85433156]
[1734467936937,2.53454,3945.5,3944.6,2.18320851]
[1734467937118,2.53454,3945.5,3944.7,2.18320851]
[1734467937325,2.53454,3945.5,3944.8,0.8732834]
[1734467937524,2.53454,3945.5,3944.9,0.87338599]
[1734467937719,2.53454,3945.5,3944.6,1.05583156]
[1734467937925,2.53454,3945.5,3944.8,0.7985]
[1734467938122,4.05942483,3946.0,3945.0,0.7985]
[1734467938123,1.05942483,3946.0,3945.0,0.7985]
[1734467938463,2.64856208,3946.7,3945.5,1.92205696]
[1734467938669,3.59307483,3946.9,3945.8,0.55]
[1734467938880,3.05187121,3946.9,3946.0,0.55]
[1734467939174,2.53371,3946.8,3946.0,0.55]
[1734467939951,2.53376,3946.7,3946.0,0.55]
[1734467940271,0.51822121,3946.9,3945.9,0.7985]
[1734467940455,2.53382,3946.6,3945.9,0.7985]
[1734467941190,2.5337,3946.8,3945.9,0.7985]
[1734467941349,2.53377,3946.7,3945.9,0.7985]
[1734467941963,2.53364,3946.9,3945.9,0.7985]
[1734467942277,2.5337,3946.8,3945.9,0.7985]
[1734467942608,2.53357,3947.0,3946.2,0.45]
[1734467943047,2.53357,3947.0,3946.1,0.7949]
[1734467943876,0.12906868,3947.3,3946.1,0.7949]
[1734467944179,2.53358,3947.0,3946.1,0.7949]
[1734467945382,2.53396,3946.4,3945.7,0.7949]
[1734467945588,1.03026487,3947.0,3945.7,0.7949]
[1734467945883,2.53398,3946.4,3945.7,0.7949]
[1734467946794,2.53345,3947.2,3945.8,0.55]
[1734467947105,2.66249868,3947.3,3946.2,0.55]
[1734467947262,2.66249868,3947.3,3946.3,0.7949]
[1734467947969,2.53345,3947.2,3946.3,0.7949]
[1734467948353,0.12906868,3947.3,3946.3,0.7949]
[1734467948354,2.53352,3947.1,3946.3,0.7949]
[1734467948558,0.12906868,3947.3,3946.3,0.7949]
[1734467948759,2.53344,3947.2,3946.3,0.7949]
[1734467948963,2.53356,3947.0,3946.3,0.7949]
[1734467949205,2.53369,3946.9,3946.3,0.7949]
[1734467949603,2.53371,3946.8,3946.3,0.7949]
[1734467949803,0.26625087,3947.1,3946.3,0.7949]
[1734467949992,2.53353,3947.1,3946.3,0.7949]
[1734467950193,2.53357,3947.0,3946.3,0.7949]
[1734467950394,2.53363,3946.9,3946.3,0.7949]
[1734467951309,2.53351,3947.1,3946.3,0.7949]
[1734467951604,0.12906868,3947.3,3946.3,0.7949]
[1734467951814,0.26624087,3947.2,3946.3,0.7949]
[1734467952016,2.53363,3946.9,3946.3,0.7949]
[1734467953081,2.5335,3947.1,3946.3,0.7949]
[1734467953380,2.5336,3947.0,3946.3,0.7949]
[1734467954092,2.53395,3946.4,3946.3,0.7949]
[1734467954266,0.253395,3946.4,3945.5,0.7625]
[1734467954470,2.53402,3946.3,3945.5,0.7625]
[1734467954917,2.53402,3946.3,3945.5,0.6625]
[1734467955227,3.7522,3947.2,3945.5,0.6625]
[1734467955373,2.53356,3947.1,3945.9,1.26713]
[1734467955573,2.53356,3947.1,3946.0,0.55]
[1734467955872,2.53356,3947.1,3946.2,0.55]
[1734467956436,2.66244868,3947.3,3946.2,0.55]
[1734467956713,2.53344,3947.2,3946.2,0.55]
[1734467957673,0.12906868,3947.3,3946.2,0.55]
[1734467957874,2.53351,3947.1,3946.3,0.7625]
[1734467958111,0.12906868,3947.3,3946.3,0.7625]
[1734467958420,0.7522,3948.0,3946.7,0.7625]
[1734467958773,2.6968397,3948.1,3946.7,0.7625]
[1734467958774,0.12958686,3947.7,3946.7,0.7625]
[1734467958973,0.1639297,3948.1,3946.9,1.2668]
[1734467959221,2.53294,3948.0,3947.0,0.7625]
[1734467959513,2.533,3947.9,3947.0,0.7625]
[1734467959922,0.1639297,3948.1,3947.0,0.7625]
[1734467960222,2.53292,3948.0,3947.0,0.7625]
[1734467960425,0.1639297,3948.1,3947.0,0.7625]
[1734467960718,2.533,3947.9,3947.0,0.7625]
[1734467961015,2.53308,3947.8,3947.0,0.7625]
[1734467962045,2.53294,3948.0,3947.1,0.55]
[1734467962819,0.1639297,3948.1,3947.0,0.7625]
[1734467963023,2.53293,3948.0,3947.0,1.0030759]
[1734467963190,2.53293,3948.0,3947.1,0.7625]
[1734467963617,0.1639297,3948.1,3947.1,0.7625]
[1734467963826,2.53299,3947.9,3947.1,0.7625]
[1734467965673,2.53325,3947.5,3947.1,0.7625]
[1734467967239,2.53365,3946.9,3946.2,0.1998803]
[1734467967392,0.253325,3947.5,3946.3,0.10386979]
[1734467967573,2.53348,3947.2,3945.4,1.94739402]
[1734467967778,2.53348,3947.2,3945.9,1.26713]
[1734467968106,0.253325,3947.5,3946.0,0.10387599]
[1734467968107,2.53356,3947.1,3946.0,0.10387599]
[1734467968423,2.5336,3947.0,3946.1,0.10387599]
[1734467968726,2.5336,3947.0,3945.7,1.26719]
[1734467968727,2.5336,3947.0,3946.2,0.10387599]
[1734467968909,2.5336,3947.0,3946.3,0.10387599]
[1734467969072,2.5336,3947.0,3945.9,0.55]
[1734467969277,2.5336,3947.0,3946.1,0.55]
[1734467969490,2.5336,3947.0,3946.2,0.10389628]
[1734467969792,2.5336,3947.0,3946.3,0.10389628]
[1734467969994,2.53361,3947.0,3946.2,0.7625]
[1734467970177,3.28551,3947.4,3946.3,0.1039121]
[1734467970402,2.53383,3946.6,3946.2,0.7625]
[1734467970913,2.53356,3947.0,3946.2,0.7625]
[1734467971091,2.5335,3947.1,3946.2,0.7625]
[1734467971092,2.5337,3946.8,3946.2,0.7625]
[1734467971436,2.53376,3946.7,3946.2,0.7625]
[1734467973259,2.53344,3947.2,3946.2,0.7625]
[1734467973438,0.8297,3946.9,3945.2,1.3703]
[1734467973622,2.53414,3946.2,3945.3,0.10395632]
[1734467973822,2.53414,3946.2,3945.4,0.65395632]
[1734467974027,2.53414,3946.2,3945.5,0.10395632]
[1734467974221,2.53416,3946.1,3945.3,0.55]
[1734467974426,2.53416,3946.1,3945.4,0.10396927]
[1734467974666,2.53414,3946.2,3945.5,0.10393243]
[1734467974814,2.53369,3946.8,3945.2,0.8203]
[1734467974815,0.253414,3946.1,3945.2,0.8203]
[1734467975013,2.53434,3945.8,3945.3,0.10390298]
[1734467975213,2.53434,3945.8,3945.2,0.8203]
[1734467975458,0.8297,3946.2,3945.3,0.10390582]
[1734467975661,2.53434,3945.8,3945.2,0.8203]
[1734467976157,2.53447,3945.6,3945.2,0.7203]
[1734467976340,2.17550396,3945.6,3944.2,1.05583156]
[1734467976513,2.17550396,3945.6,3944.0,1.58374735]
[1734467976514,0.8297,3945.5,3944.3,0.10390292]
[1734467976714,0.8297,3945.5,3944.4,0.10390292]
[1734467976962,0.8297,3945.5,3943.7,1.74388398]
[1734467976963,0.8297,3945.5,3944.5,0.10390292]
[1734467977167,0.8297,3945.5,3943.9,1.05583156]
[1734467977168,2.53473,3945.2,3944.6,0.10390292]
[1734467977317,0.8297,3945.5,3943.6,1.53165484]
[1734467977318,0.253473,3945.1,3943.6,1.3196264]
[1734467977663,0.253473,3945.1,3943.4,1.58374735]
[1734467977664,2.53506,3944.7,3943.7,0.10390158]
[1734467977959,2.53506,3944.7,3943.5,1.26789]
[1734467977960,2.53506,3944.7,3943.8,0.10390158]
[1734467978164,1.92205696,3945.2,3943.3,1.05583156]
[1734467978326,2.53532,3944.3,3943.4,0.9759666]
[1734467978515,2.53532,3944.3,3942.9,1.05583156]
[1734467978716,2.53532,3944.3,3943.1,1.26803]
[1734467978973,2.53532,3944.3,3943.3,0.7203]
[1734467979365,2.53537,3944.2,3943.3,0.7203]
[1734467979733,2.75175696,3944.8,3943.3,0.7203]
[1734467980068,2.5354,3944.2,3943.3,0.7203]
[1734467980288,2.53551,3944.0,3943.3,0.7203]
[1734467980493,2.53559,3943.9,3943.3,0.7203]
[1734467981984,0.25354,3944.2,3943.3,0.6203]
[1734467982144,2.53543,3944.1,3943.3,0.6203]
[1734467982768,0.25354,3944.2,3943.3,0.6203]
[1734467982769,2.53552,3944.0,3943.3,0.6203]
[1734467983279,2.814426,3944.0,3943.3,0.6203]
[1734467984769,0.278906,3944.0,3943.3,0.6203]
[1734467984964,0.25354,3944.2,3943.3,0.6203]
[1734467984965,2.53549,3944.1,3943.3,0.6203]
[1734467986666,2.53549,3944.1,3943.3,0.5203]
[1734467989777,2.663968,3944.1,3943.3,0.5203]
[1734467993379,2.663968,3944.1,3943.3,0.4203]
[1734467994213,0.128478,3944.1,3943.3,0.4203]
[1734467995345,0.6124225,3944.1,3943.3,0.4203]
[1734467997455,0.128478,3944.1,3943.3,0.3203]
[1734468001451,0.938878,3944.1,3943.3,0.3203]
[1734468002154,2.53552,3944.0,3943.3,0.3203]
[1734468002525,1.92205696,3943.6,3943.3,0.3203]
[1734468002859,1.92205696,3943.6,3942.7,0.3203]
[1734468003168,1.92205696,3943.6,3942.8,0.158847]
[1734468003362,4.45781696,3943.6,3942.8,0.26295101]
[1734468003662,4.45781696,3943.6,3942.9,0.10410401]
[1734468004017,0.938878,3944.1,3942.9,0.12946541]
[1734468004357,0.7873,3945.4,3943.3,1.92205696]
[1734468004525,0.12773569,3945.2,3944.4,1.5879]
[1734468004859,1.0661067,3945.4,3944.5,0.10408753]
[1734468004860,0.2788067,3945.4,3944.5,0.10408753]
[1734468005054,0.253447,3945.6,3944.6,0.10408753]
[1734468005266,2.787917,3945.6,3944.7,0.10417957]
[1734468005431,2.787917,3945.6,3944.4,1.5879]
[1734468005635,2.787917,3945.6,3944.5,0.10417182]
[1734468006035,2.787917,3945.6,3944.4,1.5879]
[1734468006036,2.787917,3945.6,3944.6,0.10417182]
[1734468006234,2.5346,3945.4,3944.7,0.10417182]
[1734468006415,0.3575217,3945.5,3944.8,0.10417182]
[1734468006731,0.3575217,3945.5,3944.4,0.3203]
[1734468006926,0.48476327,3945.5,3944.5,0.27100208]
[1734468007129,0.12724157,3945.5,3944.6,0.10422561]
[1734468007329,2.53476,3945.2,3944.4,0.3203]
[1734468007543,2.66180157,3945.5,3944.5,0.10426454]
[1734468007886,2.5347,3945.3,3944.6,0.10426454]
[1734468008045,2.5347,3945.3,3944.7,0.10426454]
[1734468008247,2.5347,3945.3,3944.8,0.1042041]
[1734468008446,2.53472,3945.2,3944.5,0.16674397]
[1734468008667,2.53472,3945.2,3944.6,0.10420614]
[1734468008826,2.53472,3945.2,3944.7,0.10420614]
[1734468009174,2.53472,3945.2,3944.8,0.10420614]
[1734468009486,2.53472,3945.2,3944.4,0.3203]
[1734468009687,2.53472,3945.2,3944.5,0.10413033]
[1734468009835,2.53472,3945.2,3944.6,0.10413033]
[1734468010035,2.53472,3945.2,3944.7,0.10413033]
[1734468010273,2.53472,3945.2,3944.4,0.3203]
[1734468010460,2.53472,3945.2,3944.5,0.10409646]
[1734468010663,2.53472,3945.2,3944.6,0.10409646]
[1734468010850,0.253472,3945.2,3944.4,0.3203]
[1734468011037,2.53495,3944.9,3943.6,0.55]
[1734468011231,2.53495,3944.9,3943.8,1.26778]
[1734468011476,2.53495,3944.9,3943.9,0.27066775]
[1734468011681,2.53495,3944.9,3944.0,0.10408721]
[1734468011836,2.53495,3944.9,3944.1,0.10408721]
[1734468012041,2.53495,3944.9,3944.2,0.10408823]
[1734468012381,2.53495,3944.9,3944.3,0.10408823]
[1734468012534,0.7873,3945.1,3943.7,0.3203]
[1734468012535,0.7873,3945.1,3944.0,0.166557]
[1734468012735,0.7873,3945.1,3944.1,0.42437374]
[1734468012939,3.32209,3945.1,3944.2,0.10407374]
[1734468013184,3.32209,3945.1,3944.3,0.10407374]
[1734468013332,3.32209,3945.1,3944.4,0.10407374]
[1734468013333,3.6796462,3945.1,3944.4,0.10407374]
[1734468013539,3.6796462,3945.1,3944.1,0.486857]
[1734468013843,2.53491,3945.0,3944.2,0.10406592]
[1734468014223,1.1448562,3945.1,3944.3,0.10406592]
[1734468014341,1.1448562,3945.1,3944.1,0.3203]
[1734468014342,2.53481,3945.1,3944.1,0.3203]
[1734468014682,1.92205696,3945.9,3944.5,0.3203]
[1734468014683,0.7873,3945.9,3944.5,0.3203]
[1734468014888,2.70935696,3945.9,3944.6,0.10406753]
[1734468015178,2.70935696,3945.9,3944.5,0.3203]
[1734468015179,1.92205696,3945.5,3944.5,0.3203]
[1734468015385,2.53495,3944.9,3944.5,0.3203]
[1734468015536,1.92205696,3945.1,3943.9,0.3203]
[1734468015741,2.5352,3944.5,3943.9,0.3203]
[1734468017488,2.53523,3944.5,3943.9,0.3203]
[1734468019849,1.92205696,3945.1,3943.9,0.3203]
[1734468020075,0.7638,3944.8,3943.9,0.3203]
[1734468020253,2.53527,3944.4,3943.9,0.3203]
[1734468021797,2.53488,3945.0,3943.9,0.3203]
[1734468021998,2.53488,3945.0,3944.0,0.10410606]
[1734468022297,2.53488,3945.0,3944.1,0.10410606]
[1734468022604,2.53488,3945.0,3943.9,1.58805]
[1734468022772,0.7638,3945.2,3944.0,0.10410634]
[1734468023092,2.53498,3944.8,3944.1,0.10410634]
[1734468023301,2.53498,3944.8,3943.9,0.79355247]
[1734468023470,2.53498,3944.8,3944.0,0.10411841]
[1734468023670,2.53498,3944.8,3944.1,0.10411841]
[1734468023972,1.58913725,3945.5,3944.1,0.10411841]
[1734468023973,1.05942483,3945.7,3944.8,0.3203]
[1734468024191,1.05942483,3945.7,3944.7,1.92205696]
[1734468024192,1.05942483,3946.1,3945.1,0.3203]
[1734468024390,2.11884967,3946.5,3945.3,0.3203]
[1734468024391,1.05942483,3946.5,3945.3,0.3203]
[1734468024591,2.42113725,3946.6,3945.3,0.3203]
[1734468024592,2.53396,3946.4,3945.3,0.3203]
[1734468024776,0.832,3946.6,3945.4,0.10400459]
[1734468024960,0.832,3946.6,3945.3,0.3203]
[1734468025158,2.53411,3946.2,3945.3,0.3203]
[1734468025706,2.53401,3946.3,3945.3,0.3203]
[1734468025858,2.53421,3946.0,3945.3,0.3203]
[1734468026063,2.53416,3946.1,3945.3,0.3203]
[1734468026261,2.72308248,3946.5,3945.3,0.3203]
[1734468026588,2.53421,3946.1,3945.3,0.3203]
[1734468027465,2.53401,3946.3,3945.3,0.3203]
[1734468027789,2.53437,3945.8,3945.3,0.3203]
[1734468028370,2.53421,3946.1,3945.3,0.3203]